fUSD/lending_fUSD_20260320
["ID","MTS","AMOUNT","RATE_DAILY","PERIOD"]
[408640033,1774036267615,-1400.0,0.000213,2]
[408640034,1774036267627,-700.0,0.000213,2]
[408640035,1774036267637,-800.0,0.000213,2]
[408640036,1774036267647,-700.0,0.000213,2]
[408640037,1774036267658,-1500.0,0.000213,2]
[408640038,1774036267668,-1100.0,0.000213,2]
[408640039,1774036267679,-1400.0,0.000213,2]
[408640040,1774036267688,-700.0,0.000213,2]
[408640041,1774036267699,-800.0,0.000213,2]
[408640042,1774036267709,-700.0,0.000213,2]
[408640043,1774036267719,-1500.0,0.000213,2]
[408640044,1774036267728,-1100.0,0.000213,2]
[408640045,1774036267738,-1400.0,0.000213,2]
[408640046,1774036267748,-700.0,0.000213,2]
[408640047,1774036267759,-800.0,0.000213,2]
[408640048,1774036267768,-1500.0,0.000213,2]
[408640049,1774036267779,-1100.0,0.000213,2]
[408640050,1774036267791,-1400.0,0.000213,2]
[408640051,1774036267805,-500.0,0.000213,2]
[408640052,1774036267816,-500.0,0.000213,2]
[408640053,1774036267827,-800.0,0.000213,2]
[408640054,1774036267836,-1500.0,0.000213,2]
[408640055,1774036267846,-373.07221866,0.000213,2]
[408640056,1774036267856,-500.0,0.000213,2]
[408640057,1774036267866,-1400.0,0.000213,2]
[408640058,1774036267877,-700.0,0.000213,2]
[408640059,1774036267886,-1100.0,0.000213,2]
[408640060,1774036267896,-500.0,0.000213,2]
[408640061,1774036267906,-800.0,0.000213,2]
[408640062,1774036267915,-1500.0,0.000213,2]
[408640063,1774036267925,-979.76104131,0.000213,2]
[408640064,1774036267935,-500.0,0.000213,2]
[408640065,1774036267944,-1400.0,0.000213,2]
[408640066,1774036267954,-1100.0,0.000213,2]
[408640067,1774036267963,-700.0,0.000213,2]
[408640068,1774036267973,-800.0,0.000213,2]
[408640069,1774036267983,-1500.0,0.000213,2]
[408640070,1774036267992,-500.0,0.000213,2]
[408640071,1774036268002,-346.07913606,0.000213,2]
[408640072,1774036268012,-1400.0,0.000213,2]
[408640073,1774036268021,-700.0,0.000213,2]
[408640074,1774036268030,-1100.0,0.000213,2]
[408640075,1774036268040,-800.0,0.000213,2]
[408640076,1774036268049,-1500.0,0.000213,2]
[408640077,1774036268058,-500.0,0.000213,2]
[408640078,1774036268068,-1400.0,0.000213,2]
[408640079,1774036268077,-1100.0,0.000213,2]
[408640080,1774036268086,-800.0,0.000213,2]
[408640081,1774036268096,-1500.0,0.000213,2]
[408640082,1774036268106,-500.0,0.000213,2]
[408640083,1774036268115,-1400.0,0.000213,2]
[408640084,1774036268125,-700.0,0.000213,2]
[408640085,1774036268135,-1100.0,0.000213,2]
[408640086,1774036268145,-500.0,0.000213,2]
[408640087,1774036268154,-500.0,0.000213,2]
[408640088,1774036268164,-1400.0,0.000213,2]
[408640089,1774036268173,-700.0,0.000213,2]
[408640090,1774036268183,-1100.0,0.000213,2]
[408640091,1774036268193,-500.0,0.000213,2]
[408640092,1774036268203,-500.0,0.000213,2]
[408640093,1774036268212,-900.0,0.000213,2]
[408640094,1774036268222,-1100.0,0.000213,2]
[408640095,1774036268232,-700.0,0.000213,2]
[408640096,1774036268242,-1400.0,0.000213,2]
[408640097,1774036268253,-500.0,0.000213,2]
[408640098,1774036268262,-500.0,0.000213,2]
[408640099,1774036268273,-500.0,0.000213,2]
[408640100,1774036268283,-900.0,0.000213,2]
[408640101,1774036268292,-1100.0,0.000213,2]
[408640102,1774036268302,-1400.0,0.000213,2]
[408640103,1774036268312,-700.0,0.000213,2]
[408640104,1774036268321,-500.0,0.000213,2]
[408640105,1774036268380,-500.0,0.000213,2]
[408640106,1774036268390,-500.0,0.000213,2]
[408640107,1774036268400,-900.0,0.000213,2]
[408640108,1774036268410,-1100.0,0.000213,2]
[408640109,1774036268419,-1400.0,0.000213,2]
[408640110,1774036268428,-500.0,0.000213,2]
[408640111,1774036268437,-500.0,0.000213,2]
[408640112,1774036268446,-900.0,0.000213,2]
[408640113,1774036268455,-1400.0,0.000213,2]
[408640114,1774036268464,-500.0,0.000213,2]
[408640115,1774036268473,-500.0,0.000213,2]
[408640116,1774036268483,-900.0,0.000213,2]
[408640117,1774036268492,-500.0,0.000213,2]
[408640118,1774036268501,-900.0,0.000213,2]
[408640119,1774036268514,-500.0,0.000213,2]
[408640120,1774036268523,-900.0,0.000213,2]
[408640121,1774036268533,-900.0,0.000213,2]
[408640122,1774036268542,-900.0,0.000213,2]
[408640123,1774036268558,-900.0,0.000213,2]
[408640124,1774036268579,-900.0,0.000213,2]
[408640125,1774036268591,-900.0,0.000213,2]
[408640126,1774036268600,-900.0,0.000213,2]
[408640127,1774036268610,-900.0,0.000213,2]
[408640128,1774036268619,-900.0,0.000213,2]
[408640129,1774036268630,-500.0,0.000213,2]
[408640130,1774036268639,-500.0,0.000213,2]
[408640131,1774036268648,-500.0,0.000213,2]
[408640132,1774036268658,-500.0,0.000213,2]
[408640133,1774036268667,-500.0,0.000213,2]
[408640134,1774036268676,-500.0,0.000213,2]
[408640135,1774036268686,-500.0,0.000213,2]
[408640136,1774036268696,-155.36651614,0.000213,2]
[408640137,1774036268706,-364.19606509,0.000213,2]
[408640138,1774036268716,-500.0,0.000213,2]
[408640139,1774036268726,-1000.0,0.00021342,2]
[408640140,1774036268735,-6421.95,0.0002137,2]
[408640141,1774036268744,-550.0,0.0002137,2]
[408640142,1774036268753,-222.54,0.00021432,2]
[408640143,1774036268763,-57919.02353307,0.000215,2]
[408640144,1774036268772,-223.57252335,0.000215,2]
[408640145,1774036268781,-8872.78384223,0.00021578,16]
[408640146,1774036268790,-450.0,0.00021616,2]
[408640147,1774036268800,-171.6925,0.00021651,13]
[408640148,1774036268809,-776.1868,0.000217,2]
[408640149,1774036268819,-205.45,0.00021869,2]
[408640150,1774036268828,-4353.52,0.000219,2]
[408640151,1774036268838,-1677.53,0.000219,2]
[408640152,1774036268849,-5946.68,0.000219,2]
[408640153,1774036268863,-232.0,0.000219,2]
[408640154,1774036268880,-1000.0,0.00021918,2]
[408640155,1774036268890,-1000.0,0.00021918,2]
[408640156,1774036268899,-1000.0,0.00021918,2]
[408640157,1774036268908,-238.0,0.00021918,2]
[408640158,1774036268919,-5000.0,0.00021918,2]
[408640159,1774036268929,-800.0,0.00021918,13]
[408640160,1774036268939,-800.0,0.00021918,13]
[408640161,1774036268948,-800.0,0.00021918,13]
[408640162,1774036268957,-800.0,0.00021918,13]
[408640163,1774036268967,-800.0,0.00021918,13]
[408640164,1774036268977,-800.0,0.00021918,13]
[408640165,1774036268986,-800.0,0.00021918,13]
[408640166,1774036268996,-800.0,0.00021918,13]
[408640167,1774036269006,-800.0,0.00021918,13]
[408640168,1774036269016,-800.0,0.00021918,13]
[408640169,1774036269025,-800.0,0.00021918,13]
[408640170,1774036269034,-800.0,0.00021918,13]
[408640171,1774036269043,-800.0,0.00021918,13]
[408640172,1774036269052,-800.0,0.00021918,13]
[408640173,1774036269061,-800.0,0.00021918,13]
[408640174,1774036269070,-800.0,0.00021918,13]
[408640175,1774036269079,-800.0,0.00021918,13]
[408640176,1774036269088,-800.0,0.00021918,13]
[408640177,1774036269097,-800.0,0.00021918,13]
[408640178,1774036269106,-800.0,0.00021918,13]
[408640179,1774036269116,-800.0,0.00021918,13]
[408640180,1774036269126,-800.0,0.00021918,13]
[408640181,1774036269135,-800.0,0.00021918,13]
[408640182,1774036269144,-800.0,0.00021918,13]
[408640183,1774036269153,-800.0,0.00021918,13]
[408640184,1774036269162,-800.0,0.00021918,13]
[408640185,1774036269171,-800.0,0.00021918,13]
[408640186,1774036269180,-800.0,0.00021918,13]
[408640187,1774036269190,-800.0,0.00021918,13]
[408640188,1774036269200,-3054.62,0.00021918,2]
[408640189,1774036269209,-800.0,0.00021918,13]
[408640190,1774036269218,-800.0,0.00021918,13]
[408640191,1774036269228,-800.0,0.00021918,13]
[408640192,1774036269237,-800.0,0.00021918,13]
[408640193,1774036269246,-800.0,0.00021918,13]
[408640194,1774036269256,-800.0,0.00021918,13]
[408640195,1774036269265,-800.0,0.00021918,13]
[408640196,1774036269274,-800.0,0.00021918,13]
[408640197,1774036269283,-800.0,0.00021918,13]
[408640198,1774036269292,-800.0,0.00021918,13]
[408640199,1774036269301,-800.0,0.00021918,13]
[408640200,1774036269311,-800.0,0.00021918,13]
[408640201,1774036269320,-800.0,0.00021918,13]
[408640202,1774036269329,-800.0,0.00021918,13]
[408640203,1774036269339,-800.0,0.00021918,13]
[408640204,1774036269348,-800.0,0.00021918,13]
[408640205,1774036269357,-800.0,0.00021918,13]
[408640206,1774036269367,-800.0,0.00021918,13]
[408640207,1774036269377,-800.0,0.00021918,13]
[408640208,1774036269387,-800.0,0.00021918,13]
[408640209,1774036269397,-800.0,0.00021918,13]
[408640210,1774036269410,-800.0,0.00021918,13]
[408640211,1774036269419,-800.0,0.00021918,13]
[408640212,1774036269428,-800.0,0.00021918,13]
[408640213,1774036269437,-800.0,0.00021918,13]
[408640214,1774036269446,-800.0,0.00021918,13]
[408640215,1774036269455,-800.0,0.00021918,13]
[408640216,1774036269464,-800.0,0.00021918,13]
[408640217,1774036269473,-800.0,0.00021918,13]
[408640218,1774036269482,-800.0,0.00021918,13]
[408640219,1774036269491,-580.0,0.00021918,13]
[408640220,1774036269500,-152.547711,0.00021918,2]
[408640221,1774036269512,-151.0,0.00021918,2]
[408640222,1774036269522,-151.0,0.00021918,2]
[408640223,1774036269531,-151.0,0.00021918,2]
[408640224,1774036269541,-151.0,0.00021918,2]
[408640225,1774036269551,-151.0,0.00021918,2]
[408640226,1774036269560,-259.354699,0.00021918,2]
[408640227,1774036269569,-151.0,0.00021918,2]
[408640228,1774036269578,-151.0,0.00021918,2]
[408640229,1774036269589,-151.0,0.00021918,2]
[408640230,1774036269598,-151.0,0.00021918,2]
[408640231,1774036269608,-151.0,0.00021918,2]
[408640232,1774036269617,-151.0,0.00021918,2]
[408640233,1774036269627,-151.0,0.00021918,2]
[408640234,1774036269636,-151.0,0.00021918,2]
[408640235,1774036269645,-151.000001,0.00021918,2]
[408640236,1774036269655,-519.535211,0.00021918,2]
[408640237,1774036269663,-519.535211,0.00021918,2]
[408640238,1774036269673,-519.535211,0.00021918,2]
[408640239,1774036269682,-519.535211,0.00021918,2]
[408640240,1774036269691,-519.535211,0.00021918,2]
[408640241,1774036269700,-519.535211,0.00021918,2]
[408640242,1774036269709,-519.535211,0.00021918,2]
[408640243,1774036269719,-519.535211,0.00021918,2]
[408640244,1774036269729,-519.535211,0.00021918,2]
[408640245,1774036269738,-519.535211,0.00021918,2]
[408640246,1774036269747,-519.535211,0.00021918,2]
[408640247,1774036269757,-519.535211,0.00021918,2]
[408640248,1774036269767,-519.535211,0.00021918,2]
[408640249,1774036269776,-519.535211,0.00021918,2]
[408640250,1774036269785,-519.535211,0.00021918,2]
[408640251,1774036269795,-519.535211,0.00021918,2]
[408640252,1774036269804,-519.535211,0.00021918,2]
[408640253,1774036269813,-519.535211,0.00021918,2]
[408640254,1774036269823,-1000.0,0.00021918,2]
[408640255,1774036269832,-1000.0,0.00021918,2]
[408640256,1774036269841,-1000.0,0.00021918,2]
[408640257,1774036269850,-414.8189422,0.00021918,2]
[408640258,1774036269860,-650.0,0.00021918,2]
[408640259,1774036269869,-1000.0,0.00021918,2]
[408640260,1774036269879,-150.0,0.00021918,2]
[408640261,1774036269888,-1000.0,0.00021918,2]
[408640262,1774036269897,-1000.0,0.00021918,2]
[408640263,1774036269908,-1000.0,0.00021918,2]
[408640264,1774036269918,-1000.0,0.00021918,2]
[408640265,1774036269929,-1000.0,0.00021918,2]
[408640266,1774036269939,-1000.0,0.00021918,2]
[408640267,1774036269949,-1000.0,0.00021918,2]
[408640268,1774036269959,-150.0,0.00021918,2]
[408640269,1774036269969,-219.04212067,0.00021918,2]
[408640270,1774036269978,-500.0,0.00021918,2]
[408640271,1774036269988,-500.0,0.00021918,2]
[408640272,1774036269998,-500.0,0.00021918,2]
[408640273,1774036270007,-215.02525663,0.00021918,2]
[408640274,1774036270016,-150.0,0.00021918,2]
[408640275,1774036270026,-4546.60540583,0.00022,2]
[408640276,1774036270035,-164.92,0.00022,2]
[408640277,1774036270045,-160.0,0.00022,2]
[408640278,1774036270055,-238.26,0.00022,30]
[408640279,1774036270064,-497.78116383,0.000221,2]
[408640280,1774036270074,-241.9107529,0.0002211,2]
[408640281,1774036270083,-550.0,0.00022164,2]
[408640282,1774036270093,-1677.53,0.000222,7]
[408640283,1774036270103,-500.0,0.00022206,7]
[408640284,1774036270113,-486.51,0.0002235,2]
[408640285,1774036270123,-250.0,0.00022466,2]
[408640286,1774036270132,-750.0,0.00022466,2]
[408640287,1774036270142,-500.0,0.0002248,7]
[408640288,1774036270151,-35743.90963249,0.000225,2]
[408640289,1774036270160,-220.44,0.000225,7]
[408640290,1774036270170,-3629.40601856,0.000226,2]
[408640291,1774036270180,-2368.14,0.000226,7]
[408640292,1774036270190,-42344.06,0.000226,7]
[408640293,1774036270200,-2983.69,0.000226,7]
[408640294,1774036270209,-166.81,0.00022603,2]
[408640295,1774036270220,-154.65,0.00022665,2]
[408640296,1774036270230,-526.83388535,0.0002271,2]
[408640297,1774036270239,-1500.0,0.00022712,2]
[408640298,1774036270248,-650.0,0.00022712,2]
[408640299,1774036270258,-1020.8112,0.000229,2]
[408640300,1774036270267,-2000.0,0.000229,2]
[408640301,1774036270277,-232.0,0.000229,2]
[408640302,1774036270287,-9435.54409012,0.00022921,22]
[408640303,1774036270296,-2394.21305256,0.00023,30]
[408640304,1774036270306,-979.16666667,0.00023,3]
[408640305,1774036270315,-305838.99550806,0.00023,2]
[408640306,1774036270324,-3346.62593228,0.00023,2]
[408640307,1774036270334,-450.0,0.00023,2]
[408640308,1774036270344,-1000.0,0.00023,14]
[408640309,1774036270354,-850.0,0.00023014,2]
[408640310,1774036270364,-150.00824132,0.00023014,2]
[408640311,1774036270375,-171.6925,0.00023021,13]
[408640312,1774036270385,-2089.43,0.00023109,2]
[408640313,1774036270395,-1003.15627433,0.0002314,2]
[408640314,1774036270405,-1503.81,0.0002314,2]
[408640315,1774036270414,-942.76341153,0.000232,2]
[408640316,1774036270424,-750.0,0.0002326,2]
[408640317,1774036270435,-151.0,0.00023288,2]
[408640318,1774036270445,-151.0,0.00023288,2]
[408640319,1774036270456,-151.0,0.00023288,2]
[408640320,1774036270466,-151.0,0.00023288,2]
[408640321,1774036270476,-151.0,0.00023288,2]
[408640322,1774036270486,-151.0,0.00023288,2]
[408640323,1774036270496,-151.0,0.00023288,2]
[408640324,1774036270507,-291.30504,0.00023288,2]
[408640325,1774036270517,-4353.52,0.000233,7]
[408640326,1774036270526,-800.0,0.00023302,7]
[408640327,1774036270535,-1000.0,0.00023333,7]
[408640328,1774036270545,-5253.77,0.000234,2]
[408640329,1774036270555,-150.0,0.00023439,2]
[408640330,1774036270564,-150.0,0.00023439,2]
[408640331,1774036270573,-150.0,0.00023439,2]
[408640332,1774036270583,-150.0,0.00023439,2]
[408640333,1774036270594,-503.0,0.00023562,10]
[408640334,1774036270606,-950.0,0.00023562,2]
[408640335,1774036270617,-168.0,0.00023574,2]
[408640336,1774036270628,-211.79360547,0.00023808,2]
[408640337,1774036270638,-1756.041,0.00023883,2]
[408640338,1774036270648,-1044.0,0.00023883,2]
[408640339,1774036270658,-2503.468,0.00023883,2]
[408640340,1774036270668,-2465.0,0.00023883,2]
[408640341,1774036270678,-220.44,0.000239,7]
[408640342,1774036270688,-232.0,0.000239,2]
[408640343,1774036270698,-1028.95564199,0.00024,2]
[408640344,1774036270708,-3600.0,0.00024,2]
[408640345,1774036270717,-1244.05530385,0.00024,2]
[408640346,1774036270727,-979.16666667,0.00024,7]
[408640347,1774036270737,-2368.14,0.00024,7]
[408640348,1774036270747,-42344.06,0.00024,7]
[408640349,1774036270758,-979.16666667,0.00024,7]
[408640350,1774036270767,-2983.69,0.00024,7]
[408640351,1774036270776,-2000.0,0.00024082,2]
[408640352,1774036270786,-1050.0,0.0002411,2]
[408640353,1774036270795,-1342.5319,0.000242,2]
[408640354,1774036270804,-425.02596506,0.0002421,2]
[408640355,1774036270814,-3723.44512179,0.0002421,2]
[408640356,1774036270823,-800.0,0.00024398,7]
[408640357,1774036270832,-500.0,0.00024398,7]
[408640358,1774036270842,-486.51,0.00024513,2]
[408640359,1774036270852,-2000.0,0.00024657,20]
[408640360,1774036270862,-1029.05974635,0.00024658,2]
[408640361,1774036270871,-151.0,0.00024658,2]
[408640362,1774036270881,-158.864799,0.00024658,2]
[408640363,1774036270891,-1000.0,0.00024658,2]
[408640364,1774036270900,-151.0,0.00024658,2]
[408640365,1774036270910,-151.0,0.00024658,2]
[408640366,1774036270920,-151.0,0.00024658,2]
[408640367,1774036270930,-151.0,0.00024658,2]
[408640368,1774036270939,-151.0,0.00024658,2]
[408640369,1774036270950,-153.520066,0.00024658,2]
[408640370,1774036270960,-151.0,0.00024658,2]
[408640371,1774036270969,-151.0,0.00024658,2]
[408640372,1774036270978,-151.0,0.00024658,2]
[408640373,1774036270988,-151.0,0.00024658,2]
[408640374,1774036270997,-873.55,0.00024658,2]
[408640375,1774036271007,-150.0,0.00024658,2]
[408640376,1774036271016,-500.0,0.00024672,7]
[408640377,1774036271025,-2658.15941161,0.00024769,4]
[408640378,1774036271035,-1024.53,0.000248,30]
[408640379,1774036271045,-5253.77,0.000249,2]
[408640380,1774036271054,-232.0,0.000249,2]
[408640381,1774036271064,-607014.498279,0.000249,2]
[408640382,1774036271075,-2660.58721529,0.00024949,10]
[408640383,1774036271085,-399.1859244,0.00025,7]
[408640384,1774036271094,-979.16666667,0.00025,30]
[408640385,1774036271103,-228335.0,0.00025,7]
[408640386,1774036271113,-1119.91059564,0.00025,2]
[408640387,1774036271123,-208.62764529,0.00025,2]
[408640388,1774036271133,-1794.4648833,0.00025,2]
[408640389,1774036271143,-2000.0,0.00025,2]
[408640390,1774036271152,-540.0,0.00025,2]
[408640391,1774036271162,-614.11081506,0.00025,2]
[408640392,1774036271171,-3059.75604473,0.00025,2]
[408640393,1774036271180,-7163.78438716,0.00025,2]
[408640394,1774036271190,-2212.09345307,0.00025,2]
[408640395,1774036271201,-168.20090404,0.00025,2]
[408640396,1774036271211,-3809.98273275,0.00025,2]
[408640397,1774036271221,-500.0,0.00025,2]
[408640398,1774036271231,-4353.52,0.00025,7]
[408640399,1774036271241,-1677.53,0.000253,7]
[408640400,1774036271250,-49799.13684546,0.0002539,2]
[408640401,1774036271260,-1765.6466,0.000254,2]
[408640402,1774036271270,-1000.0,0.00025452,2]
[408640403,1774036271279,-220.44,0.000256,7]
[408640404,1774036271288,-10420.37452392,0.00025606,32]
[408640405,1774036271298,-2983.69,0.000257,7]
[408640406,1774036271309,-42344.06,0.000258,7]
[408640407,1774036271318,-150.0,0.0002589,2]
[408640408,1774036271328,-2368.14,0.000259,7]
[408640409,1774036271337,-234.0,0.000259,2]
[408640410,1774036271347,-436.0,0.00025918,2]
[408640411,1774036271356,-604.16621244,0.0002599,2]
[408640412,1774036271365,-4547.62325903,0.00026,2]
[408640413,1774036271375,-217.66322126,0.00026,2]
[408640414,1774036271385,-5946.68,0.00026,2]
[408640415,1774036271395,-503.0,0.00026127,13]
[408640416,1774036271410,-238.26,0.00026232,30]
[408640417,1774036271419,-27640.68059183,0.000264,2]
[408640418,1774036271429,-150.0,0.00026439,2]
[408640419,1774036271438,-150.0,0.00026439,2]
[408640420,1774036271448,-200.0,0.0002654,2]
[408640421,1774036271458,-200.0,0.0002654,2]
[408640422,1774036271467,-200.0,0.0002654,2]
[408640423,1774036271477,-200.0,0.00026541,2]
[408640424,1774036271487,-200.0,0.00026541,2]
[408640425,1774036271497,-200.0,0.00026542,2]
[408640426,1774036271507,-800.0,0.0002659,7]
[408640427,1774036271520,-500.0,0.0002659,7]
[408640428,1774036271530,-2322.1109,0.000266,2]
[408640429,1774036271539,-2000.0,0.000266,2]
[408640430,1774036271549,-207.03894112,0.00026667,7]
[408640431,1774036271559,-486.51,0.00026676,2]
[408640432,1774036271569,-425.20627517,0.00026864,7]
[408640433,1774036271579,-1044.0,0.00026883,2]
[408640434,1774036271589,-2068.399,0.00026883,2]
[408640435,1774036271599,-4353.52,0.000269,7]
[408640436,1774036271609,-1677.53,0.000269,7]
[408640437,1774036271619,-200.0,0.00026919,2]
[408640438,1774036271629,-12671.41551546,0.00026948,35]
[408640439,1774036271640,-250.0,0.00027,2]
[408640440,1774036271650,-1040.45703761,0.00027,2]
[408640441,1774036271660,-530.0,0.00027,2]
[408640442,1774036271670,-2703.484866,0.00027,2]
[408640443,1774036271680,-550.0,0.00027,2]
[408640444,1774036271691,-2000.0,0.00027,14]
[408640445,1774036271701,-3712.73,0.00027123,2]
[408640446,1774036271711,-150.0,0.00027185,2]
[408640447,1774036271720,-220.44,0.000272,7]
[408640448,1774036271731,-42344.06,0.000272,7]
[408640449,1774036271740,-2983.69,0.000272,7]
[408640450,1774036271750,-1500.0,0.00027241,2]
[408640451,1774036271760,-2589.819641,0.00027241,2]
[408640452,1774036271770,-1500.0,0.00027241,2]
[408640453,1774036271779,-1634.21,0.0002726,2]
[408640454,1774036271789,-2368.14,0.000273,7]
[408640455,1774036271798,-4135.1751406,0.0002739,2]
[408640456,1774036271808,-8169.14962316,0.0002739,2]
[408640457,1774036271818,-294.74,0.00027397,7]
[408640458,1774036271828,-195.39,0.00027397,7]
[408640459,1774036271838,-500.0,0.00027397,2]
[408640460,1774036271847,-619.64172357,0.00027397,2]
[408640461,1774036271858,-2000.0,0.00027397,30]
[408640462,1774036271869,-1000.0,0.00027397,20]
[408640463,1774036271880,-522.75,0.00027397,2]
[408640464,1774036271890,-500.0,0.00027397,2]
[408640465,1774036271900,-500.0,0.00027397,2]
[408640466,1774036271910,-500.0,0.00027397,2]
[408640467,1774036271921,-300.0,0.00027397,2]
[408640468,1774036271931,-500.0,0.00027397,2]
[408640469,1774036271941,-500.0,0.00027397,2]
[408640470,1774036271951,-500.0,0.00027397,2]
[408640471,1774036271962,-500.0,0.00027397,2]
[408640472,1774036271972,-500.0,0.00027397,2]
[408640473,1774036271982,-500.0,0.00027397,2]
[408640474,1774036271992,-500.0,0.00027397,2]
[408640475,1774036272002,-500.0,0.00027397,2]
[408640476,1774036272012,-500.0,0.00027397,2]
[408640477,1774036272023,-500.0,0.00027397,2]
[408640478,1774036272032,-500.0,0.00027397,2]
[408640479,1774036272043,-500.0,0.00027397,2]
[408640480,1774036272052,-500.0,0.00027397,2]
[408640481,1774036272062,-500.0,0.00027397,2]
[408640482,1774036272072,-500.0,0.00027397,2]
[408640483,1774036272082,-500.0,0.00027397,2]
[408640484,1774036272092,-500.0,0.00027397,2]
[408640485,1774036272102,-500.0,0.00027397,2]
[408640486,1774036272112,-500.0,0.00027397,2]
[408640487,1774036272123,-500.0,0.00027397,2]
[408640488,1774036272134,-500.0,0.00027397,2]
[408640489,1774036272315,-500.0,0.00027397,2]
[408640490,1774036272325,-500.0,0.00027397,2]
[408640491,1774036272335,-500.0,0.00027397,2]
[408640492,1774036272345,-500.0,0.00027397,2]
[408640493,1774036272356,-500.0,0.00027397,2]
[408640494,1774036272365,-500.0,0.00027397,2]
[408640495,1774036272375,-500.0,0.00027397,2]
[408640496,1774036272386,-500.0,0.00027397,2]
[408640497,1774036272396,-571.0,0.00027397,2]
[408640498,1774036272406,-313.866046,0.00027397,2]
[408640499,1774036272416,-313.866046,0.00027397,2]
[408640500,1774036272426,-313.866046,0.00027397,2]
[408640501,1774036272436,-313.866046,0.00027397,2]
[408640502,1774036272446,-313.866046,0.00027397,2]
[408640503,1774036272456,-313.866046,0.00027397,2]
[408640504,1774036272465,-313.866046,0.00027397,2]
[408640505,1774036272475,-313.866046,0.00027397,2]
[408640506,1774036272485,-313.866046,0.00027397,2]
[408640507,1774036272495,-313.866046,0.00027397,2]
[408640508,1774036272504,-313.866046,0.00027397,2]
[408640509,1774036272517,-313.866046,0.00027397,2]
[408640510,1774036272527,-313.866046,0.00027397,2]
[408640511,1774036272536,-313.866046,0.00027397,2]
[408640512,1774036272546,-313.866046,0.00027397,2]
[408640513,1774036272556,-313.866046,0.00027397,2]
[408640514,1774036272565,-313.866046,0.00027397,2]
[408640515,1774036272575,-313.866046,0.00027397,2]
[408640516,1774036272585,-313.866046,0.00027397,2]
[408640517,1774036272594,-313.86604,0.00027397,2]
[408640518,1774036272604,-1440.038344,0.00027397,2]
[408640519,1774036272614,-1440.038344,0.00027397,2]
[408640520,1774036272625,-1440.038344,0.00027397,2]
[408640521,1774036272634,-1440.038344,0.00027397,2]
[408640522,1774036272644,-1440.038344,0.00027397,2]
[408640523,1774036272654,-1440.038344,0.00027397,2]
[408640524,1774036272664,-1440.038344,0.00027397,2]
[408640525,1774036272674,-1440.038344,0.00027397,2]
[408640526,1774036272683,-1440.038344,0.00027397,2]
[408640527,1774036272692,-1440.038344,0.00027397,2]
[408640528,1774036272702,-1440.038344,0.00027397,2]
[408640529,1774036272712,-1440.038344,0.00027397,2]
[408640530,1774036272722,-1440.038344,0.00027397,2]
[408640531,1774036272732,-1440.038344,0.00027397,2]
[408640532,1774036272744,-1440.038344,0.00027397,2]